Workbook

Sheet PHP Code
C1: $Conversion=60;
K3: INPUTS | L3: Value
B4: $K_SLP=0.15/(1-$BSF); | J4: $BSF | K4: Bare Soil NDVI | L4: 0.15
J5: $RichStrip | K5: N Rich Strip | L5: 0.79
B6: $K_Inter=($K_SLP*$BSF); | J6: $FarmerPractice | K6: Farmer Practice | L6: 0.7
J7: $MaxYield | K7: Maximum Yield | L7: 250 | M7: bu/ac
B8: $INF_SLP=0.73/(1-$BSF); | J8: $NUE | K8: Expected NUE | L8: 70 | M8: %
B9: $INF_Inter=($INF_SLP*$BSF); | J9: $PercentN | K9: Percent N in Grain | L9: 1.1
B10: $ InfPt = $RichStrip*$INF_SLP-$INF_Inter; | J10: $Conv | K10: Weight/bushel, lbs | L10: 60
B11: $Curve = $RichStrip*$K_SLP-$K_Inter; | J11: $NUE | K11: Nitrogen Use Efficiency | L11: 70
B12: $RI = $RichStrip/$FarmerPractice; | J12: $K_SLP | K12: K Slope | L12: =0.15/(1-L4) -> 0.1764705882
B13: $YP0 = $Conversion*($MaxYield/(1+EXP(-(($FarmerPractice-$infPt)/$Curve)))); | J13: $K_Inter | K13: K Intercept | L13: =L12*L4 -> 0.02647058824
B14: $YPN = $Conversion*($MaxYield/(1+EXP(-(($FarmerPractice*$RI-$infPt)/$Curve)))); | J14: $INF_SLP | K14: Inf_Slope | L14: =0.73/(1-L4) -> 0.8588235294
B15: // MaxYield automatically takes care of the mertric/english conversion | J15: $INF_Inter | K15: Inf_Intercept | L15: =L14*L4 -> 0.1288235294
B16: $NRate = (($YPN-$YP0)*$PercentN)/$NUE; | J16: $InfPt | K16: Inflection Point | L16: =(L5*L14-L15) -> 0.5496470588
J17: $Curve | K17: Curve | L17: =L5*L12-L13 -> 0.1129411765
B18: $CRate1=1.12; | J18: $RI | K18: Response Index | L18: =L5/L6 -> 1.128571429 | N18: bu/ac
B19: $CRate2=60; | J19: $YP0 | K19: Yield Potential | L19: =L10*(L7/(1+EXP(-((L6-L16)/L17)))) -> 11865.70986 | M19: lb/ac | N19: =L19/60 -> 197.7618311
B20: $Conversion = 60 lbs/bu wheat | J20: $YPN | K20: Yield Potential with N | L20: =L10*(L7/(1+EXP(-((L6*L18-L16)/L17)))) -> 13404.10315 | M20: lb/ac | N20: =L20/60 -> 223.4017192
B21: $Conversion = 56 lbs/bu corn | J21: $Nrate | K21: Nitrogen Rate | L21: =((L20-L19)*L9)/L11 -> 24.17475166 | P21: Grain
O22: CROP | P22: % N | Q22: lb/bu
O23: Irrigated corn | P23: 1.25 | Q23: 56
J24: IF THEN | O24: Dryland corn | P24: 1.3 | Q24: 56
J25: NDVI | O25: Winter wheat | P25: 2.3 | Q25: 60
J26: IF NDVI>N Rich, N rate = 0 | O26: Spring wheat | P26: 2.45 | Q26: 60
J27: IF NDVI < bare soil, N rate = 0 | O27: Barley | P27: 1.7 | Q27: 48
B28: Farmer Practice | O28: Sorghum | P28: 1.34 | Q28: 56
O29: Rice | P29: 1.28 | Q29: 45
B30: NDVI | C30: $K_SLP | D30: $K_Inter | E30: $INF_SLP | F30: $INF_Inter | G30: $InfPt | H30: $Curve | I30: $RI | J30: YPO | K30: YPN | L30: N Rate
B31: 0 | C31: =0.15/(1-$L$4) -> 0.1764705882 | D31: =$L$4*C31 -> 0.02647058824 | E31: =0.73/(1-$L$4) -> 0.8588235294 | F31: =E31*$L$4 -> 0.1288235294 | G31: =($L$5*E31-F31) -> 0.5496470588 | H31: =$L$5*C31-D31 -> 0.1129411765 | I31: =$L$5/$L$6 -> 1.128571429 | J31: =$L$10*($L$7/(1+EXP(-((B31-$L$16)/$L$17)))) -> 114.602465 | K31: =$L$10*($L$7/(1+EXP(-((B31*$L$18-$L$16)/$L$17)))) -> 114.602465 | L31: =((K31-J31)*$L$9)/$L$11 -> 0
B32: 0.05 | C32: =0.15/(1-$L$4) -> 0.1764705882 | D32: =$L$4*C32 -> 0.02647058824 | E32: =0.73/(1-$L$4) -> 0.8588235294 | F32: =E32*$L$4 -> 0.1288235294 | G32: =($L$5*E32-F32) -> 0.5496470588 | H32: =$L$5*C32-D32 -> 0.1129411765 | I32: =$L$5/$L$6 -> 1.128571429 | J32: =$L$10*($L$7/(1+EXP(-((B32-$L$16)/$L$17)))) -> 177.6706805 | K32: =$L$10*($L$7/(1+EXP(-((B32*$L$18-$L$16)/$L$17)))) -> 187.9465957 | L32: =((K32-J32)*$L$9)/$L$11 -> 0.1614786672 | N32: NUE | O32: Source | P32: Method
B33: 0.1 | C33: 0.1764705882 | D33: 0.02647058824 | E33: 0.8588235294 | F33: 0.1288235294 | G33: 0.5496470588 | H33: 0.1129411765 | I33: 1.128571429 | J33: =$L$10*($L$7/(1+EXP(-((B33-$L$16)/$L$17)))) -> 274.8059431 | K33: 307.2611329 | L33: 0.5100101253 | N33: 40 | O33: UAN, Urea | P33: Broadcast without incorporation
B34: 0.15 | C34: 0.1764705882 | D34: 0.02647058824 | E34: 0.8588235294 | F34: 0.1288235294 | G34: =($L$5*E34-F34) -> 0.5496470588 | H34: =$L$5*C34-D34 -> 0.1129411765 | I34: 1.128571429 | J34: 423.529114 | K34: 499.7647145 | L34: 1.197988009
B35: 0.2 | C35: 0.1764705882 | D35: 0.02647058824 | E35: 0.8588235294 | F35: 0.1288235294 | G35: 0.5496470588 | H35: 0.1129411765 | I35: 1.128571429 | J35: 649.1918014 | K35: 806.2563901 | L35: 2.468157823
B36: 0.25 | C36: 0.1764705882 | D36: 0.02647058824 | E36: 0.8588235294 | F36: 0.1288235294 | G36: 0.5496470588 | H36: 0.1129411765 | I36: 1.128571429 | J36: 986.9499425 | K36: 1284.065802 | L36: 4.668963502
B37: 0.3 | C37: 0.1764705882 | D37: 0.02647058824 | E37: 0.8588235294 | F37: 0.1288235294 | G37: 0.5496470588 | H37: 0.1129411765 | I37: 1.128571429 | J37: 1482.284419 | K37: 2005.037863 | L37: 8.214696985
B38: 0.35 | C38: 0.1764705882 | D38: 0.02647058824 | E38: 0.8588235294 | F38: 0.1288235294 | G38: 0.5496470588 | H38: 0.1129411765 | I38: 1.128571429 | J38: 2187.413274 | K38: 3041.065197 | L38: 13.41453022 | N38: http://www.unc.edu/~rowlett/units/scales/bushels.html
B39: 0.4 | C39: 0.1764705882 | D39: 0.02647058824 | E39: 0.8588235294 | F39: 0.1288235294 | G39: 0.5496470588 | H39: 0.1129411765 | I39: 1.128571429 | J39: 3149.814399 | K39: 4429.929322 | L39: 20.11609165
B40: 0.45 | C40: 0.1764705882 | D40: 0.02647058824 | E40: 0.8588235294 | F40: 0.1288235294 | G40: 0.5496470588 | H40: 0.1129411765 | I40: 1.128571429 | J40: 4390.546717 | K40: 6128.061387 | L40: 27.30380196
B41: 0.5 | C41: 0.1764705882 | D41: 0.02647058824 | E41: 0.8588235294 | F41: 0.1288235294 | G41: 0.5496470588 | H41: 0.1129411765 | I41: 1.128571429 | J41: 5877.603856 | K41: 7985.369798 | L41: 33.12203623
B42: 0.55 | C42: 0.1764705882 | D42: 0.02647058824 | E42: 0.8588235294 | F42: 0.1288235294 | G42: 0.5496470588 | H42: 0.1129411765 | I42: 1.128571429 | J42: 7511.71874 | K42: 9784.760363 | L42: 35.7192255
B43: 0.6 | C43: 0.1764705882 | D43: 0.02647058824 | E43: 0.8588235294 | F43: 0.1288235294 | G43: 0.5496470588 | H43: 0.1129411765 | I43: 1.128571429 | J43: 9144.721742 | K43: 11334.45188 | L43: 34.41004505
B44: 0.65 | C44: 0.1764705882 | D44: 0.02647058824 | E44: 0.8588235294 | F44: 0.1288235294 | G44: 0.5496470588 | H44: 0.1129411765 | I44: 1.128571429 | J44: 10628.83698 | K44: 12539.45463 | L44: 30.02399163
B45: 0.7 | C45: 0.1764705882 | D45: 0.02647058824 | E45: 0.8588235294 | F45: 0.1288235294 | G45: 0.5496470588 | H45: 0.1129411765 | I45: 1.128571429 | J45: 11865.70986 | K45: 13404.10315 | L45: 24.17475166
B46: 0.75 | C46: 0.1764705882 | D46: 0.02647058824 | E46: 0.8588235294 | F46: 0.1288235294 | G46: 0.5496470588 | H46: 0.1129411765 | I46: 1.128571429 | J46: 12824.23857 | K46: 13989.39745 | L46: 18.30963945
B47: 0.8 | C47: 0.1764705882 | D47: 0.02647058824 | E47: 0.8588235294 | F47: 0.1288235294 | G47: 0.5496470588 | H47: 0.1129411765 | I47: 1.128571429 | J47: 13526.04346 | K47: 14370.12238 | L47: 13.26409728
B48: 0.82 | C48: 0.1764705882 | D48: 0.02647058824 | E48: 0.8588235294 | F48: 0.1288235294 | G48: 0.5496470588 | H48: 0.1129411765 | I48: 1.128571429 | J48: 13745.242 | K48: 14480.26964 | L48: 11.55043434
B49: 0.9 | C49: 0.1764705882 | D49: 0.02647058824 | E49: 0.8588235294 | F49: 0.1288235294 | G49: 0.5496470588 | H49: 0.1129411765 | I49: 1.128571429 | J49: 14354.67898 | K49: 14761.78817 | L49: 6.397430047
B50: 0.95 | C50: 0.1764705882 | D50: 0.02647058824 | E50: 0.8588235294 | F50: 0.1288235294 | G50: 0.5496470588 | H50: 0.1129411765 | I50: 1.128571429 | J50: 14579.03563 | K50: 14854.55515 | L50: 4.329592463
B51: 1 | C51: 0.1764705882 | D51: 0.02647058824 | E51: 0.8588235294 | F51: 0.1288235294 | G51: 0.5496470588 | H51: 0.1129411765 | I51: 1.128571429 | J51: 14726.87506 | K51: 14911.41263 | L51: 2.899876079

Sheet VB Code
B1: Excel version of the GA equation
B3: INPUTS | C3: Value
B4: Bare Soil NDVI | C4: 0.25
B5: N Rich Strip | C5: 0.8
B6: Farmer Practice | C6: 0.7
B7: Maximum Yield | C7: 100 | D7: bu/ac
B8: Expected NUE | C8: 70 | D8: %
B9: Percent N in Grain | C9: 2.39
B11: N Rate | C11: =GA_Nrate(C4,C5,C6,C7,C8,C9) -> 20.51976294 | D11: lb/acre
